Cogmind - Beta 15 @@@ ROGUE MODE // 2025.09.03 @ 13:22:40 Player: shapeshifter Result: Destroyed by BB-NH2(R) with Subdweller Laser Performance ------------- Evolutions (0) 0 Regions Visited (2) 400 Robots Destroyed (10) 50 Value Destroyed (234) 234 Prototype IDs (1) 20 Alien Tech Used (0) 0 Bonus (0) 0 TOTAL SCORE: 704 Bonus ------- None Cogmind --------- Core Integrity 0/250 Matter 218/300 Energy 200/200 System Corruption 0% Temperature Cool (6) Movement Walking (340) Ox3 Location -10/Subcaves Parts ------- > --- POWER (1) -------- Subdweller Power Source > --- PROPULSION (2) --- Cargo Legs > --- UTILITY (2+2) ---- Disposable Heat Sink Small Storage Unit Humpback (++) > --- WEAPON (2) ------- Light Assault Rifle Battle Rifle > --- INVENTORY (35) --- Subdweller Power Source Light Treads Compact Wheel Subdweller Monowheel High-capacity Matter Pod (0) Subdweller Optics Subdweller Optics Improved Terrain Scanner Subdweller Laser Subdweller Beam Cannon Peak State ------------ > --- POWER ------------ Subdweller Power Source > --- PROPULSION ------- Cargo Legs > --- UTILITY ---------- Small Storage Unit Humpback Subdweller Optics > --- WEAPON ----------- Light Assault Rifle Battle Rifle > --- INVENTORY -------- Subdweller Power Source Light Treads Subdweller Monowheel High-capacity Matter Pod Improved Terrain Scanner Subdweller Beam Cannon [Rating: 27] Favorites ----------- Power Subdweller Power Source Engine Subdweller Power Source Propulsion Light Treads Treads Light Treads Leg Cargo Legs Wheel Subdweller Monowheel Utility Small Storage Unit Device Seismic Detector Storage Small Storage Unit Weapon Assault Rifle Ballistic Gun Assault Rifle Build | -11 -10 -10 ------- Run | Yrd Mat Sub Slots Evolved . | . . . Power . | . . . Propulsion . | . . . Utility . | . . . Weapon . | . . . Parts Attached 20 | 7 . 13 Power 4 | 1 . 3 Engine 4 | 1 . 3 Core . | . . . Reactor . | . . . Propulsion 7 | 2 . 5 Treads 3 | 2 . 1 Leg 1 | . . 1 Wheel 3 | . . 3 Hover . | . . . Flight . | . . . Utility 5 | 2 . 3 Device 3 | 1 . 2 Storage 2 | 1 . 1 Processor . | . . . Hackware . | . . . Protection . | . . . Artifact . | . . . Weapon 4 | 2 . 2 Energy Gun . | . . . Energy Cannon . | . . . Ballistic Gun 4 | 2 . 2 Ballistic Cannon . | . . . Launcher . | . . . Special Weapon . | . . . Impact Weapon . | . . . Slashing Weapon . | . . . Piercing Weapon . | . . . Special Melee Weapon . | . . . Unidentified Prototypes 1 | . . 1 Parts Lost 7 | . . 7 Power 1 | . . 1 Propulsion 3 | . . 3 Utility 1 | . . 1 Weapon 2 | . . 2 Highest Loss Streak 4 | . . 4 To Critical Strikes . | . . . Average Backups 7 | 3 6 8 Power . | . 1 1 Propulsion 2 | 1 2 2 Utility 2 | . 1 3 Weapon 1 | . 1 1 Tool/Special . | . . . Unused Backups 5 | . . 5 Power . | . . . Propulsion . | . . . Utility 3 | . . 3 Weapon 2 | . . 2 Tool/Special . | . . . Average Slot Usage (%) 87 | . 100 81 Engine 12 | . 14 11 Treads 10 | . 28 2 Leg 5 | . . 7 Wheel 3 | . . 5 Device 12 | . 14 11 Storage 17 | . 14 19 Ballistic Gun 24 | . 28 23 Peak Build Rating 27 | 7 7 27 Average Rating 15 | 5 7 21 On Entrance 4 | . 7 7 Naked Turns . | . . . Heaviest Build 215 | 15 15 215 Greatest Support 55 | 40 40 55 Greatest Overweight (x) 3 | . . 3 Average Overweight (x) 1 | . . 1 Largest Inventory Capacity 35 | 8 8 35 Average Capacity 19 | 7 8 27 Most Carried 10 | 6 7 10 Average Carried 7 | 3 6 9 Final Capacity 35 | 8 8 35 Final Carried 10 | 5 7 10 Class Distribution -------------------- 59% | Mutant 40% | Hauler-Mutant Dominant Class ---------------- Mutant | -10/Materials Hauler-Mutant | -10/Subcaves Resources | -11 -10 -10 ----------- Run | Yrd Mat Sub Matter Collected 496 | 326 . 170 Remotely . | . . . Salvage Created 364 | 156 . 208 Parts 28 | 10 . 18 Haulers Intercepted . | . . . Recyclers Shooed . | . . . Parts Field Recycled . | . . . Retrieved Matter . | . . . Parts Self-Destructed 1 | . . 1 Prevented . | . . . Kills | -11 -10 -10 ------- Run | Yrd Mat Sub Combat Hostiles Destroyed 5 | . . 5 Guns 5 | . . 5 Classes Destroyed 3 | 2 . 1 Tunneler 4 | 4 . . Recycler 1 | 1 . . Subdweller 5 | . . 5 Best Kill Streak 3 | 3 . 2 Combat Bots Only 2 | . . 2 Max Kills in Single Turn 1 | 1 . 1 Gunslinging . | . . . Exploded . | . . . Melee . | . . . Uniques/NPCs Destroyed . | . . . Combat | -11 -10 -10 -------- Run | Yrd Mat Sub Hostile Shots Fired 55 | . . 55 Missed 16 | . . 16 Hits 39 | . . 39 Projectile 39 | . . 39 AOE 5 | . . 5 Damage Taken 1074 | . . 1074 Core 252 | . . 252 Absorbed by Shields . | . . . Core Remaining (%) 100 | 100 . . Volleys Fired 41 | 11 . 30 Largest 2 | 2 . 2 Hottest 45 | 40 . 45 Shots Fired 79 | 22 . 57 Gun 79 | 22 . 57 Cannon . | . . . Launcher . | . . . Special . | . . . Kinetic 79 | 22 . 57 Thermal . | . . . Explosive . | . . . Electromagnetic . | . . . Robot Hit Streak 6 | 5 . 6 Robot Miss Streak 3 | 3 . 2 Penetration Max . | . . . Secondary Targets 2 | . . 2 Max Gunslinging Chain 1 | . . 1 Shots Hit Robots 53 | 13 . 40 Core Hits 18 | 6 . 12 Critical Kills . | . . . Critical Parts Destroyed . | . . . Critical Strikes . | . . . Melee Attacks . | . . . Impact . | . . . Slashing . | . . . Piercing . | . . . Sneak Attacks . | . . . Combat Hostiles . | . . . Follow-up Attacks . | . . . Damage Inflicted 639 | 162 . 477 Guns 639 | 162 . 477 Cannons . | . . . Explosions . | . . . Melee . | . . . Ramming . | . . . Kinetic 639 | 162 . 477 Thermal . | . . . Explosive . | . . . Electromagnetic . | . . . Impact . | . . . Slashing . | . . . Piercing . | . . . Highest Corruption . | . . . Average Corruption . | . . . Corruption Purged . | . . . Corruption Blocked . | . . . Overload Shots . | . . . Overflow Damage . | . . . Projectiles . | . . . Explosions . | . . . Melee . | . . . Knockbacks . | . . . Impact . | . . . Kinetic . | . . . Secondary . | . . . Self-Inflicted Damage . | . . . Shots . | . . . Rammed . | . . . Targets Rammed . | . . . Kicked . | . . . Crushed . | . . . Highest Temperature . | . . . Average Temperature . | . . . Received Heat Transfer 213 | . . 213 Siege Activations . | . . . Martial Activations . | . . . Shielding Activations . | . . . Robots Disrupted . | . . . Combat Hostiles . | . . . Robots Corrupted . | . . . Combat Hostiles . | . . . Parts Fried . | . . . Impact Corruptions . | . . . Robots Melted . | . . . Combat Hostiles . | . . . Parts Melted 1 | . . 1 Heat Transferred . | . . . Parts Sabotaged . | . . . Parts Stolen . | . . . Parts Stripped . | . . . Power Chain Reactions . | . . . Alert | -11 -10 -10 ------- Run | Yrd Mat Sub Maximum Alert Level . | . . . Low Security (%) 100 | 100 100 . Level 1 . | . . . Level 2 . | . . . Level 3 . | . . . Level 4 . | . . . Level 5 . | . . . High Security . | . . . Max Security . | . . . Peak Influence 10 | 10 5 . Initial . | . . . Average . | . . . Influence Increases 30 | 25 5 . Destroy 0b10 Robot/NC 25 | 25 . . Successful Hack 5 | . 5 . Influence Decreases 30 | 25 5 . Time Decay 30 | 25 5 . Squads Dispatched . | . . . Investigation . | . . . Extermination . | . . . Reinforcement . | . . . Assault . | . . . Garrison . | . . . Intercept . | . . . Searches Triggered . | . . . Construction Impeded . | . . . Haulers Reinforced . | . . . Active Scanning Responses . | . . . Cargo Convoy Interrupts . | . . . Stealth | -11 -10 -10 --------- Run | Yrd Mat Sub Distress Signals . | . . . Communications Jammed . | . . . Distress Signals . | . . . Times Spotted 7 | . . 7 Peak Tracking Total 3 | . . 3 Tactical Retreats . | . . . Traps | -11 -10 -10 ------- Run | Yrd Mat Sub Traps Triggered . | . . . Indirectly . | . . . Trap Hack Attempts . | . . . Triggered . | . . . Disarmed . | . . . Reprogrammed . | . . . Reused . | . . . Traps Extracted . | . . . Installed . | . . . Triggered . | . . . Machines | -11 -10 -10 ---------- Run | Yrd Mat Sub Machines Disabled . | . . . Max in Single Turn . | . . . Machines Repaired . | . . . Machines Dismantled . | . . . Machines Sabotaged . | . . . Overloaded Fab Kills . | . . . Hacking | -11 -10 -10 --------- Run | Yrd Mat Sub Machines Accessed 2 | . 2 . Terminals 1 | . 1 . Fabricators . | . . . Repair Stations . | . . . Recycling Units 1 | . 1 . Scanalyzers . | . . . Garrison Access . | . . . Total Hacks 6 | . 6 . Successful 3 | . 3 . Failed 3 | . 3 . Catastrophic . | . . . Database Lockouts . | . . . Manual 4 | . 4 . Terminals 4 | . 4 . Fabricators . | . . . Repair Stations . | . . . Recycling Units 2 | . 2 . Scanalyzers . | . . . Garrison Access . | . . . Terminal Hacks . | . . . Fabricator Hacks . | . . . Repair Station Hacks . | . . . Recycling Unit Hacks 2 | . 2 . Report Inventory 1 | . 1 . Retrieve Components 1 | . 1 . Scanalyzer . | . . . Garrison Access Hacks . | . . . Unauthorized Hacks 1 | . 1 . Terminals 1 | . 1 . Botnet 1 | . 1 . Fabricators . | . . . Repair Stations . | . . . Recycling Units . | . . . Scanalyzers . | . . . Garrison Access . | . . . Data Cores Recovered . | . . . Used . | . . . Hacking Detections 2 | . 2 . Full Trace Events . | . . . Feedback Events . | . . . Feedback Blocked . | . . . Robot Schematics Acquired . | . . . Robots Built . | . . . Authchips . | . . . Time . | . . . Total Robot Build Rating . | . . . Part Schematics Acquired . | . . . Parts Built . | . . . Authchips . | . . . Time . | . . . Total Part Build Rating . | . . . Parts Repaired . | . . . Time . | . . . Parts Recycled . | . . . Recycled Matter . | . . . Retrieved Matter . | . . . Retrieved Components 1 | . 1 . Parts Scanalyzed . | . . . Part Schematics Acquired . | . . . Parts Damaged . | . . . Bothacking | -11 -10 -10 ------------ Run | Yrd Mat Sub Used RIF Installer . | . . . Robots Hacked . | . . . Non-combat . | . . . Combat . | . . . Robot Hacks Applied . | . . . Relay Couplers Released . | . . . Fabnet Peak Effective % . | . . . Robots Rewired . | . . . Allies Hacked . | . . . Hacks Repelled . | . . . Allies | -11 -10 -10 -------- Run | Yrd Mat Sub Total Allies . | . . . Largest Group . | . . . Highest-Rated Group . | . . . Highest-Rated Ally . | . . . Total Orders . | . . . Ally Attacks . | . . . Total Damage . | . . . Kills . | . . . Allies Corrupted . | . . . Allies Melted . | . . . Intel | -11 -10 -10 ------- Run | Yrd Mat Sub Active Infowar (turns) 632 | 9 296 327 Optics 150 | . . 150 Seismic 482 | 9 296 177 Robot Analysis Total . | . . . Derelict Logs Recovered 2 | . . 2 Drone Launches . | . . . Drone Recoveries . | . . . Exploration | -11 -10 -10 ------------- Run | Yrd Mat Sub Turns Passed 1208 | 216 296 696 Spaces Moved 415 | 114 74 227 Core 16 | 16 . . Treads 188 | 98 74 16 Legs 140 | . . 140 Wheels 71 | . . 71 Hover . | . . . Flight . | . . . Fastest Speed 50 | 50 160 95 Average Speed 206 | 144 160 253 Slowest Speed 340 | 160 160 340 Overloaded Moves . | . . . Propulsion Burnouts . | . . . Robots Hopped . | . . . Potential Cave-ins . | . . . Cave-ins Triggered . | . . . Exploration Rate (%) 11 | 5 12 17 Regions Visited 2 Branch Regions 1 Pre-discovered Areas . | . . . Known Exits Taken . | . . . Unknown Exits Taken 2 | 1 1 . Scrap Searched . | . . . Spaces Dug . | . . . Terrain Destroyed . | . . . Melee . | . . . Projectile . | . . . AOE . | . . . Terrain Rammed . | . . . Walls Destroyed . | . . . Machines Disabled . | . . . Actions | -11 -10 -10 --------- Run | Yrd Mat Sub Total 689 | 143 252 294 Wait 186 | . 177 9 Move 413 | 113 73 227 Hop . | . . . Pick Up 26 | 12 2 12 Fast Attach 1 | . . 1 Attach 15 | 7 . 8 Detach . | . . . Swap 4 | . . 4 Drop 3 | . . 3 Fire 41 | 11 . 30 Melee . | . . . Ram . | . . . Kick . | . . . Crush . | . . . Escape Stasis . | . . . Rewire . | . . . Trap . | . . . Miscellaneous . | . . . Route ------- -11/Scrapyard -10/Materials -10/Subcaves (discovered 1 exit: [*Mat]) History --------- Turn | Location | Event 2 | -11/Scrapyard | Met Revision 17 5 | -11/Scrapyard | Discovered new exit (range 14) 217 | -11/Scrapyard | Entered Materials 305 | -10/Materials | Build established: Mutant 496 | -10/Materials | Discovered new exit (range 6) 513 | -10/Materials | Entered Subcaves 514 | -10/Subcaves | Approached by a straggling Scientist 529 | -10/Subcaves | A Subdweller sparked back to life 529 | -10/Subcaves | A Subdweller sparked back to life 529 | -10/Subcaves | A Subdweller sparked back to life 571 | -10/Subcaves | Found Prototype Leg 606 | -10/Subcaves | Core integrity fell below 50% 640 | -10/Subcaves | Lost 4 parts (1p1n2w) 712 | -10/Subcaves | Identified Cargo Legs 713 | -10/Subcaves | Attached Cargo Legs, gained temporary slots: Utility x2 816 | -10/Subcaves | Discovered new exit (range 14) 1017 | -10/Subcaves | Build established: Hauler-Mutant 1138 | -10/Subcaves | Learned Materials non-interactive machine intel 1203 | -10/Subcaves | Core integrity fell below 20% 1209 | -10/Subcaves | Destroyed by BB-NH2(R) with Subdweller Laser Last Messages --------------- 00723_ Acquired 57 matter. 00725_ Subatomizers dissect the Sub. Optics. 00730_ Acquired Com. Wheel. 00735_ Subatomizers dissect the Sub. Optics. 00738_ Acquired Sub. Laser. 00742_ Acquired Disposable Heat Sink. 00749_ Subatomizers dissect the Sub. Optics. 00753_ Acquired Sub. Optics. 00816_ EXIT=FOUND 00863_ Sub. Optics shoots sparks and powers down. 00948_ Sub. Power Source shoots sparks and powers down. 00991_ Acquired 18 matter. 01138_ Acquired derelict log, extracted data. Data stored: Materials non-interactive machine intel. 01205_ 5D-S3I(R) destroyed. 01206_ Subatomizers dissect the Sub. Power Source. Map ----- +----------------------------------------------------+ | | | | | | | | | ?????????????????????????????????????????????????? | | ?????????????????????????????????????????????????? | | ?????????????????????????????????????????????????? | | ?????????????????????????????????????????????????? | | ?????????????????????????????????????????????????? | | ?????????????????????????????????????????????????? | | ?????????????????????????????????????????????????? | | ?????????????????????????????????????????????????? | | ?????????????????????????????????????????????????? | | ?????????????????????????????????????????????????? | | ?????????????????????????????????????????????????? | | ?????????????????????????????????????????????????? | | ?????????????????????????????????????????????????? | | ?????????????????????????????????????????????????? | | ??????????????????#??###?????????????????????????? | | ????????????????#"""## #????####??????#######???? | | ????????????????""" """##### ###????# #?### | | ?????????????????" """" ###### #?## # | | ??????????????? """" ""= # ## ### | | ???????????????"" "R%* # # # | | ?????????????? " "" ![ # | | ????????????????"""" @ ## ### | | ????????????????##"" ## ## ##?# ## # | | ?????????????????#" ??## #??## # ### | | ?????????????????# ????## #???# | | ?????????????????##??????####### #???# | | ???????????????????????????????## #?# # # #### | | ???????????????????????????????? ##??######??? | | ???????????????????????????????## ##???????????? | | ???????????????????????????????? #????????????? | | ???????????????????????????????? ##????????????? | | ??????????????????????????????? #?????????????? | | ??????????????????????????????? ?????????????? | | ?????????????????????????????? ?????????????? | | ???????????????????????????????? ??????????????? | | ?????????????????????????????????##??????????????? | | ?????????????????????????????????????????????????? | | ?????????????????????????????????????????????????? | | ?????????????????????????????????????????????????? | | ?????????????????????????????????????????????????? | | ?????????????????????????????????????????????????? | | ?????????????????????????????????????????????????? | | ?????????????????????????????????????????????????? | | ?????????????????????????????????????????????????? | | ?????????????????????????????????????????????????? | | ?????????????????????????????????????????????????? | +----------------------------------------------------+ Best States ------------- Heat Dissipation 25 Coolant Potential 50 Energy Generation 15 Energy Capacity 250 Matter Stores 300 Matter Capacity 300 Sight Range 21 Terrain Scan Density 10 Evasion (%) 50 Recoil Reduction 2 Item Schematics ----------------- None Robot Schematics ------------------ None Fabricated ------------ Nothing Repaired ---------- Nothing Alien Tech Used ----------------- None Achievements -------------- None Challenges ------------ None Game ------ Seed StrikeQuantumSuit Manual? 0 Play Time 00:07:04 Cumulative 254.2 hours Start 2025.09.03 @ 13:17:29 End 2025.09.03 @ 13:22:40 Sessions 1 Manual Loads 0 Difficulty Rogue Special Mode None Game No. 376 Rogue 376 Adventurer 0 Explorer 0 Win Type - Total 5 Types 4/0/1/0/0/0/0/0/0/0 Lore% 83 Gallery% 79 Achievement% 61 Wizard Run 0 Options --------- Layout 1 ASCII 0 Keyboard 0 Movement Mouse Keybinds 0 Fullscreen 1 Font 24/Smallcaps Map View 50x35 Zoom Use 0% Tactical HUD 1 Map Filters NONE Filters NONE Steam 1 RUN: e0c0bcc0-3795-4718-86c6-27cc18a4f969